[Event "*** Titled Tuesday Blitz"]
[Site "Chess.com"]
[Date "2021.02.16"]
[Round "8"]
[White "Fiona"]
[Black "Chessbard1972"]
[Result "0-1"]
[WhiteElo "2130"]
[BlackElo "2344"]
[TimeControl "180+1"]
[EndTime "11:29:08 PST"]
[Termination "Chessbard1972 won by resignation"]

1. e4 {[%clk 0:03:00.9]} 1... c5 {[%clk 0:02:59.3]} 2. Nc3 {[%clk 0:03:01]} 2...
a6 {[%clk 0:02:57.5]} 3. f4 {[%clk 0:03:00.9]} 3... b5 {[%clk 0:02:54.1]} 4. Nf3
{[%clk 0:03:01.2]} 4... Bb7 {[%clk 0:02:54.3]} 5. d3 {[%clk 0:03:01.5]} 5... e6
{[%clk 0:02:54.7]} 6. g3 {[%clk 0:03:00.7]} 6... Nf6 {[%clk 0:02:55.1]} 7. Bg2
{[%clk 0:03:00.9]} 7... b4 {[%clk 0:02:55.6]} 8. Ne2 {[%clk 0:03:00.7]} 8... d5
{[%clk 0:02:56.1]} 9. e5 {[%clk 0:03:00.7]} 9... Ng4 {[%clk 0:02:55.8]} 10. h3
{[%clk 0:02:55.8]} 10... Nh6 {[%clk 0:02:55.1]} 11. g4 {[%clk 0:02:47.7]} 11...
Nc6 {[%clk 0:02:52.9]} 12. c3 {[%clk 0:02:44.6]} 12... a5 {[%clk 0:02:52.4]} 13.
O-O {[%clk 0:02:43.1]} 13... Qb6 {[%clk 0:02:52.3]} 14. Kh2 {[%clk 0:02:42.6]}
14... Be7 {[%clk 0:02:49.2]} 15. d4 {[%clk 0:02:39.6]} 15... O-O {[%clk
0:02:48.2]} 16. Ng3 {[%clk 0:02:33.9]} 16... Kh8 {[%clk 0:02:46.6]} 17. f5
{[%clk 0:02:30.6]} 17... Ng8 {[%clk 0:02:43.6]} 18. fxe6 {[%clk 0:02:05.7]}
18... fxe6 {[%clk 0:02:43]} 19. Be3 {[%clk 0:01:59.2]} 19... Ba6 {[%clk
0:02:42.5]} 20. Rf2 {[%clk 0:01:43.1]} 20... Rac8 {[%clk 0:02:39.7]} 21. Bf1
{[%clk 0:01:35.4]} 21... bxc3 {[%clk 0:02:34.8]} 22. bxc3 {[%clk 0:01:33.8]}
22... cxd4 {[%clk 0:02:33.8]} 23. cxd4 {[%clk 0:01:32.1]} 23... Bxf1 {[%clk
0:02:32.2]} 24. Qxf1 {[%clk 0:01:33]} 24... Nb4 {[%clk 0:02:25.2]} 25. Rb1
{[%clk 0:01:21.9]} 25... Qd8 {[%clk 0:02:17.9]} 26. Rc1 {[%clk 0:00:56.5]} 26...
Rxc1 {[%clk 0:02:16.4]} 27. Qxc1 {[%clk 0:00:57.4]} 27... Nd3 {[%clk 0:02:11.6]}
28. Qd2 {[%clk 0:00:57.6]} 28... Nxf2 {[%clk 0:02:11.5]} 29. Qxf2 {[%clk
0:00:56.6]} 29... Bh4 {[%clk 0:02:07.4]} 30. Kg2 {[%clk 0:00:53.3]} 30... Bxg3
{[%clk 0:02:07.1]} 31. Qxg3 {[%clk 0:00:53.8]} 31... Ne7 {[%clk 0:02:06.2]} 32.
Bg5 {[%clk 0:00:51.6]} 32... Qe8 {[%clk 0:01:58.9]} 33. Be3 {[%clk 0:00:42]}
33... Nc6 {[%clk 0:01:57.3]} 34. Ng5 {[%clk 0:00:38.5]} 34... h6 {[%clk
0:01:56.9]} 35. Nf3 {[%clk 0:00:32.1]} 35... Qf7 {[%clk 0:01:54.7]} 36. h4
{[%clk 0:00:24.1]} 36... Nb4 {[%clk 0:01:53]} 37. h5 {[%clk 0:00:20.3]} 37...
Nc2 {[%clk 0:01:52.3]} 38. Bf2 {[%clk 0:00:21]} 38... Qf4 {[%clk 0:01:44.8]} 39.
Nh4 {[%clk 0:00:20.4]} 39... Qxg3+ {[%clk 0:01:43.5]} 40. Kxg3 {[%clk
0:00:21.3]} 40... Rb8 {[%clk 0:01:40.2]} 41. Ng6+ {[%clk 0:00:21.7]} 41... Kg8
{[%clk 0:01:39.7]} 42. Nf4 {[%clk 0:00:22.6]} 42... Kf7 {[%clk 0:01:39.1]} 43.
Nd3 {[%clk 0:00:22.9]} 43... Rb1 {[%clk 0:01:38]} 44. Nc5 {[%clk 0:00:11.8]}
44... Nb4 {[%clk 0:01:33.7]} 45. g5 {[%clk 0:00:06.9]} 45... hxg5 {[%clk
0:01:32.2]} 46. Kg4 {[%clk 0:00:07.4]} 46... Rb2 {[%clk 0:01:30.3]} 47. Be3
{[%clk 0:00:07.2]} 47... Rxa2 {[%clk 0:01:28.6]} 48. Bxg5 {[%clk 0:00:07.4]}
48... Rg2+ {[%clk 0:01:26.6]} 49. Kh4 {[%clk 0:00:06.2]} 49... Nc2 {[%clk
0:01:23.6]} 50. Nd3 {[%clk 0:00:05.8]} 50... Nxd4 {[%clk 0:01:22.1]} 51. Nf4
{[%clk 0:00:05.9]} 51... Nf3+ {[%clk 0:01:21.7]} 52. Kh3 {[%clk 0:00:05.9]}
52... Rxg5 {[%clk 0:01:20.9]} 0-1

[Event "*** Titled Tuesday Blitz"]
[Site "Chess.com"]
[Date "2021.02.16"]
[Round "8"]
[White "geordie_derraugh"]
[Black "pavelalexandru07"]
[Result "1-0"]
[WhiteElo "2470"]
[BlackElo "2326"]
[TimeControl "180+1"]
[EndTime "11:29:09 PST"]
[Termination "geordie_derraugh won by resignation"]

1. e4 {[%clk 0:03:00.9]} 1... c5 {[%clk 0:02:56.2]} 2. c3 {[%clk 0:03:00.1]}
2... d5 {[%clk 0:02:56.1]} 3. exd5 {[%clk 0:03:00.1]} 3... Qxd5 {[%clk
0:02:56.7]} 4. Nf3 {[%clk 0:03:00.2]} 4... g6 {[%clk 0:02:55.8]} 5. d4 {[%clk
0:02:59.9]} 5... Bg7 {[%clk 0:02:56.2]} 6. Na3 {[%clk 0:02:57.1]} 6... Nh6
{[%clk 0:02:56.3]} 7. Bc4 {[%clk 0:02:53.5]} 7... Qe4+ {[%clk 0:02:56.1]} 8. Qe2
{[%clk 0:02:48.8]} 8... Qxe2+ {[%clk 0:02:55.4]} 9. Kxe2 {[%clk 0:02:49.7]} 9...
cxd4 {[%clk 0:02:50.3]} 10. Nxd4 {[%clk 0:02:50.2]} 10... O-O {[%clk 0:02:48.2]}
11. Nab5 {[%clk 0:02:43.7]} 11... Na6 {[%clk 0:02:47.9]} 12. Re1 {[%clk
0:02:34.6]} 12... Nf5 {[%clk 0:02:17.9]} 13. Nxf5 {[%clk 0:02:03.1]} 13... Bxf5
{[%clk 0:02:13.9]} 14. Be3 {[%clk 0:02:03.7]} 14... b6 {[%clk 0:01:36.4]} 15.
Nd4 {[%clk 0:02:03]} 15... Nc7 {[%clk 0:01:25.5]} 16. Nxf5 {[%clk 0:02:02.1]}
16... gxf5 {[%clk 0:01:25.7]} 17. Rad1 {[%clk 0:01:52.8]} 17... Rfd8 {[%clk
0:01:24.6]} 18. Bg5 {[%clk 0:01:39.8]} 18... Kf8 {[%clk 0:01:07.3]} 19. Kf3
{[%clk 0:01:39]} 19... Rxd1 {[%clk 0:01:06.2]} 20. Rxd1 {[%clk 0:01:35.1]} 20...
Ke8 {[%clk 0:01:06.5]} 21. a4 {[%clk 0:00:58.1]} 21... f6 {[%clk 0:00:52.7]} 22.
Be3 {[%clk 0:00:58.1]} 22... e5 {[%clk 0:00:48]} 23. g3 {[%clk 0:00:46]} 23...
Bf8 {[%clk 0:00:38.7]} 24. Bg8 {[%clk 0:00:41.3]} 24... h6 {[%clk 0:00:26.1]}
25. Bh7 {[%clk 0:00:41.2]} 25... Ke7 {[%clk 0:00:02.1]} 26. Bxf5 {[%clk
0:00:40.4]} 26... Ne6 {[%clk 0:00:02.7]} 27. a5 {[%clk 0:00:35.3]} 27... bxa5
{[%clk 0:00:02.6]} 28. Ra1 {[%clk 0:00:35.7]} 28... Rb8 {[%clk 0:00:02.8]} 29.
Rxa5 {[%clk 0:00:35.2]} 29... Rxb2 {[%clk 0:00:02.5]} 30. Rxa7+ {[%clk
0:00:35.5]} 30... Kd6 {[%clk 0:00:01.9]} 31. Ra6+ {[%clk 0:00:35.4]} 31... Kd5
{[%clk 0:00:02]} 1-0

[Event "*** Titled Tuesday Blitz"]
[Site "Chess.com"]
[Date "2021.02.16"]
[Round "8"]
[White "Lysiak_Poltorak"]
[Black "stepanosinovsky"]
[Result "1-0"]
[WhiteElo "2435"]
[BlackElo "2301"]
[TimeControl "180+1"]
[EndTime "11:29:12 PST"]
[Termination "Lysiak_Poltorak won on time"]

1. d4 {[%clk 0:03:00.9]} 1... Nf6 {[%clk 0:02:59.2]} 2. c4 {[%clk 0:03:00.6]}
2... g6 {[%clk 0:02:59.2]} 3. Nc3 {[%clk 0:03:00]} 3... Bg7 {[%clk 0:03:00.1]}
4. e4 {[%clk 0:02:59.9]} 4... O-O {[%clk 0:03:00.3]} 5. f3 {[%clk 0:03:00.1]}
5... d6 {[%clk 0:03:00.2]} 6. Nge2 {[%clk 0:03:00.5]} 6... c5 {[%clk 0:03:00.4]}
7. Be3 {[%clk 0:03:00.3]} 7... Nc6 {[%clk 0:02:58.3]} 8. Qd2 {[%clk 0:02:59.8]}
8... a6 {[%clk 0:02:57.6]} 9. Rd1 {[%clk 0:02:58.7]} 9... Qa5 {[%clk 0:02:54.7]}
10. dxc5 {[%clk 0:02:49.1]} 10... dxc5 {[%clk 0:02:55.6]} 11. Nf4 {[%clk
0:02:47.6]} 11... Rd8 {[%clk 0:02:07.9]} 12. Qc1 {[%clk 0:02:36.5]} 12... Nd4
{[%clk 0:01:56.7]} 13. Be2 {[%clk 0:02:30.3]} 13... b5 {[%clk 0:01:41.5]} 14.
O-O {[%clk 0:02:11.5]} 14... b4 {[%clk 0:00:48.9]} 15. Ncd5 {[%clk 0:02:09.9]}
15... Nxd5 {[%clk 0:00:45.3]} 16. exd5 {[%clk 0:02:05.1]} 16... Qxa2 {[%clk
0:00:32.6]} 17. Rf2 {[%clk 0:01:17.1]} 17... Bf5 {[%clk 0:00:19.9]} 18. Bd3
{[%clk 0:01:13.6]} 18... Nb3 {[%clk 0:00:15.3]} 19. Qc2 {[%clk 0:01:12.6]} 19...
Nd4 {[%clk 0:00:14.4]} 20. Qc1 {[%clk 0:01:10]} 20... Bxd3 {[%clk 0:00:14.1]}
21. Rxd3 {[%clk 0:01:09.9]} 21... Nf5 {[%clk 0:00:13.4]} 22. Bxc5 {[%clk
0:01:07.6]} 22... Rac8 {[%clk 0:00:13.1]} 23. Bb6 {[%clk 0:00:55]} 23... Rxc4
{[%clk 0:00:12.6]} 24. Qd1 {[%clk 0:00:54.1]} 24... Rdc8 {[%clk 0:00:12.2]} 25.
b3 {[%clk 0:00:52.1]} 25... Rc1 {[%clk 0:00:11.3]} 26. Rxa2 {[%clk 0:00:50.5]}
26... Rxd1+ {[%clk 0:00:11.4]} 27. Rxd1 {[%clk 0:00:51.4]} 27... Rc3 {[%clk
0:00:10.5]} 28. Rxa6 {[%clk 0:00:48.3]} 28... Be5 {[%clk 0:00:09.6]} 29. Nd3
{[%clk 0:00:45.4]} 29... Bd6 {[%clk 0:00:09.6]} 30. g4 {[%clk 0:00:36.3]} 30...
Nh4 {[%clk 0:00:09]} 31. Ra8+ {[%clk 0:00:36.7]} 31... Kg7 {[%clk 0:00:08.9]}
32. Bd4+ {[%clk 0:00:37.1]} 1-0

[Event "*** Titled Tuesday Blitz"]
[Site "Chess.com"]
[Date "2021.02.16"]
[Round "8"]
[White "amintabatabaei"]
[Black "Zurability"]
[Result "1-0"]
[WhiteElo "2927"]
[BlackElo "2636"]
[TimeControl "180+1"]
[EndTime "11:29:15 PST"]
[Termination "amintabatabaei won on time"]

1. d4 {[%clk 0:03:00.9]} 1... Nf6 {[%clk 0:02:59.1]} 2. Nf3 {[%clk 0:03:01.4]}
2... d5 {[%clk 0:02:59.3]} 3. Bf4 {[%clk 0:03:01.9]} 3... e6 {[%clk 0:02:48]} 4.
e3 {[%clk 0:03:02.1]} 4... Be7 {[%clk 0:02:45.7]} 5. h3 {[%clk 0:02:59.3]} 5...
O-O {[%clk 0:02:45.2]} 6. Nbd2 {[%clk 0:02:56.9]} 6... b6 {[%clk 0:02:44.6]} 7.
c3 {[%clk 0:02:54.4]} 7... Bb7 {[%clk 0:02:44.9]} 8. Bd3 {[%clk 0:02:54.3]} 8...
Nbd7 {[%clk 0:02:41.8]} 9. O-O {[%clk 0:02:54.3]} 9... Ne4 {[%clk 0:02:37.1]}
10. a4 {[%clk 0:02:54.1]} 10... a6 {[%clk 0:02:36.2]} 11. Qc2 {[%clk 0:02:51.8]}
11... f5 {[%clk 0:02:30]} 12. c4 {[%clk 0:02:50.2]} 12... Rc8 {[%clk 0:02:15]}
13. Qb3 {[%clk 0:02:46]} 13... c5 {[%clk 0:02:03.7]} 14. Rac1 {[%clk 0:02:41.2]}
14... Kh8 {[%clk 0:01:59.6]} 15. Bh2 {[%clk 0:02:33.4]} 15... cxd4 {[%clk
0:01:53.5]} 16. exd4 {[%clk 0:02:30.3]} 16... Ndf6 {[%clk 0:01:35.1]} 17. c5
{[%clk 0:02:20.9]} 17... Nd7 {[%clk 0:01:26.4]} 18. Rc2 {[%clk 0:02:13.2]} 18...
f4 {[%clk 0:01:19.4]} 19. Re1 {[%clk 0:02:07.5]} 19... e5 {[%clk 0:01:12.5]} 20.
Nxe4 {[%clk 0:02:02.7]} 20... dxe4 {[%clk 0:01:00.5]} 21. Bxe4 {[%clk
0:02:03.6]} 21... Bxe4 {[%clk 0:01:00.1]} 22. Rxe4 {[%clk 0:02:04.5]} 22... exd4
{[%clk 0:01:00.7]} 23. Rxd4 {[%clk 0:02:04.7]} 23... bxc5 {[%clk 0:00:55.1]} 24.
Rxf4 {[%clk 0:02:02.7]} 24... Rxf4 {[%clk 0:00:48.6]} 25. Bxf4 {[%clk
0:02:03.6]} 25... Bf6 {[%clk 0:00:49.1]} 26. Rd2 {[%clk 0:02:00.3]} 26... Qe8
{[%clk 0:00:46.7]} 27. Qb7 {[%clk 0:01:57.7]} 27... Nf8 {[%clk 0:00:45.6]} 28.
Qxa6 {[%clk 0:01:53.6]} 28... c4 {[%clk 0:00:46.2]} 29. Re2 {[%clk 0:01:44]}
29... Qd7 {[%clk 0:00:42]} 30. Be5 {[%clk 0:01:38.5]} 30... Bxe5 {[%clk
0:00:38.9]} 31. Rxe5 {[%clk 0:01:33.2]} 31... c3 {[%clk 0:00:37.2]} 32. bxc3
{[%clk 0:01:30.8]} 32... Rxc3 {[%clk 0:00:37.3]} 33. Qb5 {[%clk 0:01:25]} 33...
Rc1+ {[%clk 0:00:28.4]} 34. Kh2 {[%clk 0:01:24.5]} 34... Qf7 {[%clk 0:00:29.3]}
35. Rf5 {[%clk 0:01:18.1]} 35... Qc7+ {[%clk 0:00:22.1]} 36. Ne5 {[%clk
0:01:12.6]} 36... Qc8 {[%clk 0:00:06.2]} 37. Nf7+ {[%clk 0:00:55.3]} 37... Kg8
{[%clk 0:00:06.3]} 38. Nd6 {[%clk 0:00:56.2]} 38... Qe6 {[%clk 0:00:02.7]} 39.
Qb8 {[%clk 0:00:55.2]} 39... Qe7 {[%clk 0:00:01.4]} 40. Qb3+ {[%clk 0:00:54.6]}
40... Kh8 {[%clk 0:00:01.2]} 41. Nf7+ {[%clk 0:00:54.1]} 41... Kg8 {[%clk
0:00:01.8]} 42. Nh6+ {[%clk 0:00:54.3]} 1-0

[Event "*** Titled Tuesday Blitz"]
[Site "Chess.com"]
[Date "2021.02.16"]
[Round "8"]
[White "Danfii"]
[Black "rozabaku"]
[Result "1-0"]
[WhiteElo "2420"]
[BlackElo "2232"]
[TimeControl "180+1"]
[EndTime "11:29:15 PST"]
[Termination "Danfii won by checkmate"]

1. e4 {[%clk 0:03:00.9]} 1... e6 {[%clk 0:02:59.8]} 2. d4 {[%clk 0:03:00.7]}
2... d5 {[%clk 0:02:59.9]} 3. Nd2 {[%clk 0:03:01.3]} 3... Nf6 {[%clk 0:02:59.6]}
4. e5 {[%clk 0:03:01.4]} 4... Nfd7 {[%clk 0:02:59.8]} 5. Bd3 {[%clk 0:03:02.3]}
5... c5 {[%clk 0:03:00.1]} 6. c3 {[%clk 0:03:03]} 6... Nc6 {[%clk 0:03:00.7]} 7.
Ne2 {[%clk 0:03:03.2]} 7... Be7 {[%clk 0:03:01.4]} 8. O-O {[%clk 0:03:02.5]}
8... O-O {[%clk 0:03:01.6]} 9. Nf3 {[%clk 0:02:59.1]} 9... a6 {[%clk 0:02:59.5]}
10. Nf4 {[%clk 0:02:58.1]} 10... b5 {[%clk 0:02:58]} 11. Re1 {[%clk 0:02:57.8]}
11... b4 {[%clk 0:02:57.8]} 12. g3 {[%clk 0:02:56.2]} 12... a5 {[%clk
0:02:57.8]} 13. h4 {[%clk 0:02:56.1]} 13... h6 {[%clk 0:02:45.4]} 14. h5 {[%clk
0:02:55.6]} 14... a4 {[%clk 0:02:44]} 15. Bb1 {[%clk 0:02:51.6]} 15... a3 {[%clk
0:02:43.4]} 16. Qc2 {[%clk 0:02:47.4]} 16... f5 {[%clk 0:02:38.2]} 17. exf6
{[%clk 0:02:33.9]} 17... Nxf6 {[%clk 0:02:37.7]} 18. Nxe6 {[%clk 0:02:31.2]}
18... Bxe6 {[%clk 0:02:22.1]} 19. Rxe6 {[%clk 0:02:32.1]} 19... Ne4 {[%clk
0:02:17.4]} 20. Rxe4 {[%clk 0:02:19.1]} 20... dxe4 {[%clk 0:02:14.6]} 21. Qxe4
{[%clk 0:02:20]} 21... bxc3 {[%clk 0:01:10.4]} 22. Qh7+ {[%clk 0:02:18.7]} 22...
Kf7 {[%clk 0:01:06.6]} 23. Bg6+ {[%clk 0:01:59.2]} 23... Ke6 {[%clk 0:01:03.8]}
24. bxc3 {[%clk 0:01:36.8]} 24... Rxf3 {[%clk 0:01:00.5]} 25. Be4 {[%clk
0:01:34.3]} 25... Nxd4 {[%clk 0:00:31.6]} 26. Bf4 {[%clk 0:00:47]} 26... Ne2+
{[%clk 0:00:24.4]} 27. Kf1 {[%clk 0:00:47.3]} 27... Nxf4 {[%clk 0:00:20.7]} 28.
Qf5+ {[%clk 0:00:47.1]} 28... Kd6 {[%clk 0:00:19.3]} 29. Rd1+ {[%clk 0:00:42.3]}
29... Kc7 {[%clk 0:00:18.9]} 30. Rxd8 {[%clk 0:00:41.6]} 30... Rxd8 {[%clk
0:00:18.8]} 31. Bxf3 {[%clk 0:00:40.1]} 31... Nd3 {[%clk 0:00:15.1]} 32. Be4
{[%clk 0:00:29.8]} 32... c4 {[%clk 0:00:12.9]} 33. Qa5+ {[%clk 0:00:28]} 33...
Kc8 {[%clk 0:00:11.4]} 34. Qa6+ {[%clk 0:00:25.3]} 34... Kc7 {[%clk 0:00:11.5]}
35. Qc6+ {[%clk 0:00:25.8]} 35... Kb8 {[%clk 0:00:10.2]} 36. Qb7# {[%clk
0:00:26.7]} 1-0

[Event "*** Titled Tuesday Blitz"]
[Site "Chess.com"]
[Date "2021.02.16"]
[Round "8"]
[White "zimmm36"]
[Black "j2806"]
[Result "1-0"]
[WhiteElo "2289"]
[BlackElo "2131"]
[TimeControl "180+1"]
[EndTime "11:29:18 PST"]
[Termination "zimmm36 won by resignation"]

1. d4 {[%clk 0:03:00.9]} 1... Nf6 {[%clk 0:02:59.4]} 2. Nf3 {[%clk 0:03:01.8]}
2... d5 {[%clk 0:02:59.6]} 3. g3 {[%clk 0:03:02.7]} 3... e6 {[%clk 0:03:00.2]}
4. Bg2 {[%clk 0:03:00.9]} 4... Be7 {[%clk 0:02:57.5]} 5. O-O {[%clk 0:03:01.8]}
5... O-O {[%clk 0:02:57.9]} 6. c4 {[%clk 0:02:54.6]} 6... dxc4 {[%clk 0:02:51]}
7. Qc2 {[%clk 0:02:52.7]} 7... a6 {[%clk 0:02:50.9]} 8. a4 {[%clk 0:02:38.3]}
8... c5 {[%clk 0:02:39.5]} 9. Rd1 {[%clk 0:02:10.4]} 9... Qb6 {[%clk 0:02:22.5]}
10. Na3 {[%clk 0:02:05.7]} 10... Nc6 {[%clk 0:02:11.4]} 11. Nxc4 {[%clk
0:02:00.5]} 11... Qa7 {[%clk 0:02:10.8]} 12. a5 {[%clk 0:01:42.7]} 12... cxd4
{[%clk 0:02:03.2]} 13. Bf4 {[%clk 0:01:33.2]} 13... Bc5 {[%clk 0:01:53.7]} 14.
Rac1 {[%clk 0:00:54.1]} 14... Bd7 {[%clk 0:01:33.2]} 15. Nd6 {[%clk 0:00:48.9]}
15... Bxd6 {[%clk 0:01:26.5]} 16. Bxd6 {[%clk 0:00:48.3]} 16... Rfc8 {[%clk
0:01:26.2]} 17. Bc5 {[%clk 0:00:48.6]} 17... Qb8 {[%clk 0:01:23.6]} 18. Nxd4
{[%clk 0:00:48.3]} 18... Nxd4 {[%clk 0:01:16.6]} 19. Rxd4 {[%clk 0:00:49.2]}
19... Qc7 {[%clk 0:01:10.6]} 20. Qd2 {[%clk 0:00:42.8]} 20... Rab8 {[%clk
0:00:57.1]} 21. b4 {[%clk 0:00:38.3]} 21... Nd5 {[%clk 0:00:38.7]} 22. e4 {[%clk
0:00:29.8]} 22... Nf6 {[%clk 0:00:34.8]} 23. Rd1 {[%clk 0:00:24.6]} 23... Ra8
{[%clk 0:00:29]} 24. Rxd7 {[%clk 0:00:21.6]} 24... Nxd7 {[%clk 0:00:26.4]} 25.
Qxd7 {[%clk 0:00:22.5]} 25... Qc6 {[%clk 0:00:20.5]} 26. Qxc6 {[%clk 0:00:21.2]}
26... bxc6 {[%clk 0:00:20.8]} 27. e5 {[%clk 0:00:20.4]} 27... Rab8 {[%clk
0:00:20.1]} 28. Rd6 {[%clk 0:00:20.3]} 28... Rb5 {[%clk 0:00:17.2]} 29. Bxc6
{[%clk 0:00:19.8]} 29... Rbb8 {[%clk 0:00:16]} 30. Bd7 {[%clk 0:00:19.8]} 30...
Rc7 {[%clk 0:00:15.2]} 31. Ba4 {[%clk 0:00:20.2]} 31... Rcb7 {[%clk 0:00:15.1]}
32. Rxa6 {[%clk 0:00:19.9]} 32... g6 {[%clk 0:00:14.2]} 33. Rb6 {[%clk
0:00:20.8]} 33... Rc7 {[%clk 0:00:13.9]} 34. Bc6 {[%clk 0:00:20.7]} 34... Rxb6
{[%clk 0:00:13]} 35. axb6 {[%clk 0:00:21.6]} 35... Rxc6 {[%clk 0:00:13.4]} 36.
b7 {[%clk 0:00:22.5]} 1-0

[Event "*** Titled Tuesday Blitz"]
[Site "Chess.com"]
[Date "2021.02.16"]
[Round "8"]
[White "MaevskiyNikolay"]
[Black "garfield_pg"]
[Result "0-1"]
[WhiteElo "2521"]
[BlackElo "2357"]
[TimeControl "180+1"]
[EndTime "11:29:22 PST"]
[Termination "garfield_pg won by resignation"]

1. d4 {[%clk 0:03:00.9]} 1... Nf6 {[%clk 0:02:59.2]} 2. c4 {[%clk 0:03:00]} 2...
g6 {[%clk 0:02:59.5]} 3. Nc3 {[%clk 0:03:00.1]} 3... Bg7 {[%clk 0:02:59.9]} 4.
e4 {[%clk 0:03:00.7]} 4... d6 {[%clk 0:03:00.4]} 5. Nge2 {[%clk 0:03:01.4]} 5...
O-O {[%clk 0:03:00.9]} 6. Ng3 {[%clk 0:03:01.5]} 6... Nc6 {[%clk 0:03:01.2]} 7.
h4 {[%clk 0:02:58.2]} 7... h5 {[%clk 0:02:59.8]} 8. f3 {[%clk 0:02:55.5]} 8...
Nd7 {[%clk 0:02:59.2]} 9. d5 {[%clk 0:02:52.4]} 9... Nd4 {[%clk 0:02:55.5]} 10.
Bd3 {[%clk 0:02:50]} 10... c5 {[%clk 0:02:56]} 11. Nge2 {[%clk 0:02:45.5]} 11...
Ne5 {[%clk 0:02:51.4]} 12. Be3 {[%clk 0:02:38.7]} 12... a6 {[%clk 0:02:09.8]}
13. a4 {[%clk 0:02:24.8]} 13... Bd7 {[%clk 0:02:04.1]} 14. O-O {[%clk
0:02:18.9]} 14... b5 {[%clk 0:02:03.7]} 15. axb5 {[%clk 0:02:18.4]} 15... axb5
{[%clk 0:02:02.8]} 16. Rxa8 {[%clk 0:02:18.5]} 16... Qxa8 {[%clk 0:02:01.6]} 17.
cxb5 {[%clk 0:02:09.4]} 17... Rb8 {[%clk 0:01:58.4]} 18. Kh1 {[%clk 0:01:45.9]}
18... Nxb5 {[%clk 0:01:51.8]} 19. f4 {[%clk 0:01:19.3]} 19... Ng4 {[%clk
0:01:46]} 20. Bg1 {[%clk 0:01:17.1]} 20... Nxc3 {[%clk 0:01:26.6]} 21. bxc3
{[%clk 0:01:15.4]} 21... Qa2 {[%clk 0:01:14.6]} 22. Qa1 {[%clk 0:00:49.5]} 22...
Rb2 {[%clk 0:01:09.5]} 23. Qxa2 {[%clk 0:00:45.8]} 23... Rxa2 {[%clk 0:01:10.4]}
24. Rb1 {[%clk 0:00:39.3]} 24... Bf6 {[%clk 0:01:02.6]} 25. g3 {[%clk
0:00:37.6]} 25... Ba4 {[%clk 0:01:02.9]} 26. Rc1 {[%clk 0:00:28.8]} 26... Rd2
{[%clk 0:00:55.2]} 27. Bc4 {[%clk 0:00:24.2]} 27... Bd1 {[%clk 0:00:51.7]} 28.
Rxd1 {[%clk 0:00:16.7]} 28... Rxd1 {[%clk 0:00:51.7]} 29. Kg2 {[%clk 0:00:16.9]}
29... Rd2 {[%clk 0:00:47.4]} 30. Kf1 {[%clk 0:00:15.5]} 30... Rc2 {[%clk
0:00:43.5]} 31. Bf2 {[%clk 0:00:13.8]} 31... Nxf2 {[%clk 0:00:42.5]} 32. Kxf2
{[%clk 0:00:13.9]} 32... Bxc3 {[%clk 0:00:43.4]} 33. Bb5 {[%clk 0:00:13.3]}
33... Bd4+ {[%clk 0:00:43.4]} 34. Kf3 {[%clk 0:00:13.1]} 34... Rb2 {[%clk
0:00:43]} 35. Bc4 {[%clk 0:00:11.5]} 35... Rb4 {[%clk 0:00:43]} 36. Bd3 {[%clk
0:00:11.1]} 36... Rb3 {[%clk 0:00:42.9]} 37. Nc1 {[%clk 0:00:10.8]} 37... Rc3
{[%clk 0:00:39.7]} 38. Ke2 {[%clk 0:00:05.8]} 38... Rxc1 {[%clk 0:00:39.3]} 0-1

[Event "*** Titled Tuesday Blitz"]
[Site "Chess.com"]
[Date "2021.02.16"]
[Round "8"]
[White "bylavochka"]
[Black "jaramsdal"]
[Result "1-0"]
[WhiteElo "2103"]
[BlackElo "2288"]
[TimeControl "180+1"]
[EndTime "11:29:22 PST"]
[Termination "bylavochka won by resignation"]

1. e4 {[%clk 0:03:00.9]} 1... c5 {[%clk 0:02:53.8]} 2. Nf3 {[%clk 0:03:00]} 2...
d6 {[%clk 0:02:52.8]} 3. d4 {[%clk 0:03:00]} 3... cxd4 {[%clk 0:02:53.7]} 4.
Nxd4 {[%clk 0:03:00.8]} 4... Nf6 {[%clk 0:02:54.1]} 5. Nc3 {[%clk 0:03:01]} 5...
Nc6 {[%clk 0:02:54.7]} 6. f3 {[%clk 0:02:58.6]} 6... Qb6 {[%clk 0:02:49]} 7. Nb3
{[%clk 0:02:45.4]} 7... g6 {[%clk 0:02:33.1]} 8. Qd3 {[%clk 0:02:31.3]} 8... Bg7
{[%clk 0:02:32.6]} 9. Be3 {[%clk 0:02:30.2]} 9... Qd8 {[%clk 0:02:27.5]} 10. Be2
{[%clk 0:02:27.8]} 10... O-O {[%clk 0:02:26.5]} 11. O-O {[%clk 0:02:27.9]} 11...
a6 {[%clk 0:02:17.4]} 12. a3 {[%clk 0:02:26.1]} 12... b5 {[%clk 0:02:17.3]} 13.
Rfd1 {[%clk 0:02:23.4]} 13... Bb7 {[%clk 0:02:15.7]} 14. Kh1 {[%clk 0:02:18.5]}
14... Ne5 {[%clk 0:02:15.6]} 15. Qd2 {[%clk 0:02:15.3]} 15... Nc4 {[%clk
0:02:15.8]} 16. Bxc4 {[%clk 0:02:15.4]} 16... bxc4 {[%clk 0:02:16.7]} 17. Nd4
{[%clk 0:02:14.2]} 17... Nd7 {[%clk 0:02:13.8]} 18. Bh6 {[%clk 0:02:11.5]} 18...
Qb6 {[%clk 0:02:09.8]} 19. Bxg7 {[%clk 0:02:10.6]} 19... Kxg7 {[%clk 0:02:10.7]}
20. Rab1 {[%clk 0:02:04.6]} 20... Rab8 {[%clk 0:01:56.9]} 21. Qg5 {[%clk
0:01:58.1]} 21... Nf6 {[%clk 0:01:54.8]} 22. Nf5+ {[%clk 0:01:43.7]} 22... Kh8
{[%clk 0:01:54.9]} 23. Nxe7 {[%clk 0:01:43.8]} 23... Ng8 {[%clk 0:01:45.1]} 24.
Nxg8 {[%clk 0:01:30.7]} 24... Kxg8 {[%clk 0:01:46]} 25. Qf6 {[%clk 0:01:15.2]}
25... Qf2 {[%clk 0:01:40.6]} 26. Qxd6 {[%clk 0:00:41.2]} 26... Qxc2 {[%clk
0:01:39.5]} 27. Rd2 {[%clk 0:00:36.9]} 27... Qb3 {[%clk 0:01:39.8]} 28. Rbd1
{[%clk 0:00:33.3]} 28... h5 {[%clk 0:01:36.8]} 29. Qf6 {[%clk 0:00:25.4]} 29...
a5 {[%clk 0:01:32]} 30. h3 {[%clk 0:00:23.8]} 30... Ba8 {[%clk 0:01:31.8]} 31.
Nd5 {[%clk 0:00:21.4]} 31... Bxd5 {[%clk 0:01:31.3]} 32. exd5 {[%clk 0:00:21.3]}
32... c3 {[%clk 0:01:12]} 33. Qxc3 {[%clk 0:00:19.7]} 33... Qxc3 {[%clk
0:01:12.1]} 34. bxc3 {[%clk 0:00:20.6]} 34... Rb3 {[%clk 0:01:12]} 35. Rc1
{[%clk 0:00:19.1]} 35... Rxa3 {[%clk 0:01:12]} 36. c4 {[%clk 0:00:19.3]} 36...
Re3 {[%clk 0:01:08.3]} 37. c5 {[%clk 0:00:17.8]} 37... a4 {[%clk 0:01:08.7]} 38.
c6 {[%clk 0:00:15.1]} 38... a3 {[%clk 0:01:09.2]} 39. c7 {[%clk 0:00:14.2]}
39... Rc8 {[%clk 0:01:08.2]} 40. d6 {[%clk 0:00:13.8]} 40... a2 {[%clk
0:01:05.4]} 41. Rxa2 {[%clk 0:00:13.7]} 41... Rd3 {[%clk 0:01:04.9]} 42. Rc6
{[%clk 0:00:12.5]} 42... Kf8 {[%clk 0:01:04.2]} 43. Rb2 {[%clk 0:00:11.6]} 43...
Ke8 {[%clk 0:01:04.5]} 44. Rb8 {[%clk 0:00:11.3]} 44... Kd7 {[%clk 0:01:04.9]}
45. Rxc8 {[%clk 0:00:11.4]} 45... Kxc8 {[%clk 0:01:05.1]} 46. Kh2 {[%clk
0:00:11.1]} 46... h4 {[%clk 0:01:03.2]} 47. Ra6 {[%clk 0:00:10.5]} 47... Kd7
{[%clk 0:00:58.6]} 48. Ra8 {[%clk 0:00:09.7]} 48... Rc3 {[%clk 0:00:59]} 49.
Rd8+ {[%clk 0:00:09.6]} 49... Ke6 {[%clk 0:00:57.7]} 50. c8=Q+ {[%clk
0:00:09.9]} 1-0